fUST/lending_fUST_20251014
["ID","MTS","AMOUNT","RATE_DAILY","PERIOD"]
[391181264,1760409060716,-500.0,0.00020984,2]
[391181265,1760409060736,-500.0,0.00020984,2]
[391181266,1760409060750,-500.0,0.00020984,2]
[391181267,1760409060760,-500.0,0.00020984,2]
[391181268,1760409060770,-500.0,0.00020984,2]
[391181269,1760409060779,-500.0,0.00020984,2]
[391181270,1760409060788,-500.0,0.00020984,2]
[391181271,1760409060798,-500.0,0.00020984,2]
[391181272,1760409060807,-500.0,0.00020984,2]
[391181273,1760409060817,-500.0,0.00020984,2]
[391181274,1760409060826,-500.0,0.00020984,2]
[391181275,1760409060835,-500.0,0.00020984,2]
[391181276,1760409060845,-500.0,0.00020984,2]
[391181277,1760409060854,-500.0,0.00020984,2]
[391181278,1760409060864,-500.0,0.00020984,2]
[391181279,1760409060875,-500.0,0.00020984,2]
[391181280,1760409060885,-515.94981412,0.00020984,2]
[391181281,1760409060894,-500.0,0.00020984,2]
[391181282,1760409060903,-500.0,0.00020984,2]
[391181283,1760409060913,-500.0,0.00020984,2]
[391181284,1760409060922,-500.0,0.00020984,2]
[391181285,1760409060931,-500.0,0.00020984,2]
[391181286,1760409060940,-500.0,0.00020984,2]
[391181287,1760409060949,-500.0,0.00020984,2]
[391181288,1760409060959,-533.42541345,0.00020984,2]
[391181289,1760409060968,-501.57733676,0.00020984,2]
[391181290,1760409060977,-435.67306054,0.00020984,2]
[391181291,1760409060991,-500.0,0.00020984,2]
[391181292,1760409061000,-500.0,0.00020984,2]
[391181293,1760409061010,-500.0,0.00020984,2]
[391181294,1760409061019,-500.0,0.00020984,2]
[391181295,1760409061028,-500.0,0.00020984,2]
[391181296,1760409061037,-500.0,0.00020984,2]
[391181297,1760409061046,-500.0,0.00020984,2]
[391181298,1760409061055,-504.44533881,0.00020984,2]
[391181299,1760409061063,-500.0,0.00020984,2]
[391181300,1760409061072,-500.0,0.00020984,2]
[391181301,1760409061081,-179.22296922,0.00020984,2]
[391181302,1760409061090,-500.0,0.00020984,2]
[391181303,1760409061099,-500.0,0.00020984,2]
[391181304,1760409061108,-500.0,0.00020984,2]
[391181305,1760409061117,-500.0,0.00020984,2]
[391181306,1760409061126,-500.0,0.00020984,2]
[391181307,1760409061135,-500.0,0.00020984,2]
[391181308,1760409061213,-500.0,0.00020984,2]
[391181309,1760409061222,-500.0,0.00020984,2]
[391181310,1760409061231,-500.0,0.00020984,2]
[391181311,1760409061239,-500.0,0.00020984,2]
[391181312,1760409061248,-500.0,0.00020984,2]
[391181313,1760409061257,-500.0,0.00020984,2]
[391181314,1760409061266,-512.35538012,0.00020984,2]
[391181315,1760409061275,-500.0,0.00020984,2]
[391181316,1760409061283,-200.0,0.00020984,10]
[391181317,1760409061292,-204.174079,0.00020984,10]
[391181318,1760409061301,-500.0,0.00020984,2]
[391181319,1760409061310,-500.0,0.00020984,2]
[391181320,1760409061319,-500.0,0.00020984,2]
[391181321,1760409061328,-500.0,0.00020984,2]
[391181322,1760409061337,-500.0,0.00020984,2]
[391181323,1760409061346,-500.0,0.00020984,2]
[391181324,1760409061355,-279.81270375,0.00020984,2]
[391181325,1760409061364,-500.0,0.00020984,2]
[391181326,1760409061373,-500.0,0.00020984,2]
[391181327,1760409061382,-500.0,0.00020984,2]
[391181328,1760409061391,-235.77536498,0.00020984,2]
[391181329,1760409061399,-500.0,0.00020984,2]
[391181330,1760409061408,-500.0,0.00020984,2]
[391181331,1760409061416,-500.0,0.00020984,2]
[391181332,1760409061425,-500.0,0.00020984,2]
[391181333,1760409061434,-500.0,0.00020984,2]
[391181334,1760409061443,-503.05792266,0.00020984,2]
[391181335,1760409061453,-501.48937448,0.00020984,2]
[391181336,1760409061461,-500.0,0.00020984,2]
[391181337,1760409061471,-501.76178727,0.00020984,2]
[391181338,1760409061480,-500.0,0.00020984,2]
[391181339,1760409061489,-500.0,0.00020984,2]
[391181340,1760409061498,-500.0,0.00020984,2]
[391181341,1760409061507,-500.0,0.00020984,2]
[391181342,1760409061516,-500.0,0.00020984,2]
[391181343,1760409061525,-500.0,0.00020984,2]
[391181344,1760409061534,-500.0,0.00020984,2]
[391181345,1760409061543,-500.0,0.00020984,2]
[391181346,1760409061552,-500.0,0.00020984,2]
[391181347,1760409061561,-500.0,0.00020984,2]
[391181348,1760409061571,-500.0,0.00020984,2]
[391181349,1760409061579,-500.0,0.00020984,2]
[391181350,1760409061589,-500.0,0.00020984,2]
[391181351,1760409061603,-500.0,0.00020984,2]
[391181352,1760409061611,-500.0,0.00020984,2]
[391181353,1760409061622,-500.0,0.00020984,2]
[391181354,1760409061631,-500.0,0.00020984,2]
[391181355,1760409061641,-500.0,0.00020984,2]
[391181356,1760409061649,-500.0,0.00020984,2]
[391181357,1760409061658,-500.0,0.00020984,2]
[391181358,1760409061668,-500.0,0.00020984,2]
[391181359,1760409061677,-548.20505738,0.00020984,2]
[391181360,1760409061686,-1233.85,0.00020989,2]
[391181361,1760409061694,-1233.85,0.00020989,2]
[391181362,1760409061703,-1233.85,0.00020989,2]
[391181363,1760409061712,-1233.85,0.00020989,2]
[391181364,1760409061720,-1233.85,0.00020989,2]
[391181365,1760409061729,-1233.85,0.00020989,2]
[391181366,1760409061738,-1233.85,0.00020989,2]
[391181367,1760409061747,-1233.85,0.00020989,2]
[391181368,1760409061756,-1233.85,0.00020989,2]
[391181369,1760409061764,-1233.85,0.00020989,2]
[391181370,1760409061779,-1233.85,0.00020989,2]
[391181371,1760409061788,-1233.85,0.00020989,2]
[391181372,1760409061797,-1233.85,0.00020989,2]
[391181373,1760409061806,-1233.85,0.00020989,2]
[391181374,1760409061815,-1233.85,0.00020989,2]
[391181375,1760409061824,-1233.85,0.00020989,2]
[391181376,1760409061833,-1233.85,0.00020989,2]
[391181377,1760409061843,-1233.85,0.00020989,2]
[391181378,1760409061852,-1233.85,0.00020989,2]
[391181379,1760409061861,-1233.85,0.00020989,2]
[391181380,1760409061872,-1233.85,0.00020989,2]
[391181381,1760409061881,-1233.85,0.00020989,2]
[391181382,1760409061891,-1233.85,0.00020989,2]
[391181383,1760409061900,-1233.87835748,0.00020989,2]
[391181384,1760409061909,-500.0,0.00020989,2]
[391181385,1760409061919,-415.90999665,0.00020989,2]
[391181386,1760409061928,-500.0,0.00020989,2]
[391181387,1760409061938,-502.14941888,0.00020989,2]
[391181388,1760409061949,-609.98,0.00020989,2]
[391181389,1760409061959,-609.98,0.00020989,2]
[391181390,1760409061968,-609.98,0.00020989,2]
[391181391,1760409061978,-609.98,0.00020989,2]
[391181392,1760409061987,-609.98,0.00020989,2]
[391181393,1760409061997,-609.98,0.00020989,2]
[391181394,1760409062006,-609.98,0.00020989,2]
[391181395,1760409062015,-609.98,0.00020989,2]
[391181396,1760409062025,-609.98,0.00020989,2]
[391181397,1760409062034,-609.98,0.00020989,2]
[391181398,1760409062044,-609.98,0.00020989,2]
[391181399,1760409062053,-609.98,0.00020989,2]
[391181400,1760409062063,-609.98,0.00020989,2]
[391181401,1760409062072,-609.98,0.00020989,2]
[391181402,1760409062081,-609.98,0.00020989,2]
[391181403,1760409062090,-609.98,0.00020989,2]
[391181404,1760409062099,-609.98,0.00020989,2]
[391181405,1760409062108,-609.98,0.00020989,2]
[391181406,1760409062118,-609.98,0.00020989,2]
[391181407,1760409062128,-609.98,0.00020989,2]
[391181408,1760409062138,-609.98,0.00020989,2]
[391181409,1760409062147,-609.98,0.00020989,2]
[391181410,1760409062157,-609.98,0.00020989,2]
[391181411,1760409062166,-610.14517217,0.00020989,2]
[391181412,1760409062175,-500.0,0.00020989,2]
[391181413,1760409062188,-500.0,0.00020989,2]
[391181414,1760409062204,-500.0,0.00020989,2]
[391181415,1760409062220,-500.0,0.00020989,2]
[391181416,1760409062238,-500.0,0.00020989,2]
[391181417,1760409062252,-500.0,0.00020989,2]
[391181418,1760409062269,-500.0,0.00020989,2]
[391181419,1760409062281,-498.06622292,0.00020989,2]
[391181420,1760409062290,-500.0,0.00020989,2]
[391181421,1760409062299,-250.64677829,0.00020989,2]
[391181422,1760409062308,-500.0,0.00020989,2]
[391181423,1760409062317,-500.0,0.00020989,2]
[391181424,1760409062327,-500.0,0.00020989,2]
[391181425,1760409062336,-500.0,0.00020989,2]
[391181426,1760409062345,-500.0,0.00020989,2]
[391181427,1760409062353,-500.0,0.00020989,2]
[391181428,1760409062362,-500.0,0.00020989,2]
[391181429,1760409062371,-500.0,0.00020989,2]
[391181430,1760409062448,-500.0,0.00020989,2]
[391181431,1760409062458,-500.0,0.00020989,2]
[391181432,1760409062467,-500.0,0.00020989,2]
[391181433,1760409062476,-500.0,0.00020989,2]
[391181434,1760409062484,-500.0,0.00020989,2]
[391181435,1760409062493,-500.0,0.00020989,2]
[391181436,1760409062502,-500.0,0.00020989,2]
[391181437,1760409062511,-500.0,0.00020989,2]
[391181438,1760409062520,-500.0,0.00020989,2]
[391181439,1760409062529,-500.0,0.00020989,2]
[391181440,1760409062538,-234.24487279,0.00020989,2]
[391181441,1760409062548,-500.0,0.00020989,2]
[391181442,1760409062557,-500.0,0.00020989,2]
[391181443,1760409062566,-500.0,0.00020989,2]
[391181444,1760409062576,-500.0,0.00020989,2]
[391181445,1760409062586,-500.0,0.00020989,2]
[391181446,1760409062605,-500.0,0.00020989,2]
[391181447,1760409062620,-504.29324967,0.00020989,2]
[391181448,1760409062629,-552.75,0.00020989,2]
[391181449,1760409062639,-552.75,0.00020989,2]
[391181450,1760409062649,-552.75,0.00020989,2]
[391181451,1760409062658,-552.75,0.00020989,2]
[391181452,1760409062667,-552.75,0.00020989,2]
[391181453,1760409062676,-552.75,0.00020989,2]
[391181454,1760409062685,-552.75,0.00020989,2]
[391181455,1760409062694,-552.75,0.00020989,2]
[391181456,1760409062704,-552.75,0.00020989,2]
[391181457,1760409062713,-552.75,0.00020989,2]
[391181458,1760409062722,-552.75,0.00020989,2]
[391181459,1760409062731,-552.75,0.00020989,2]
[391181460,1760409062740,-552.75,0.00020989,2]
[391181461,1760409062749,-552.75,0.00020989,2]
[391181462,1760409062759,-552.75,0.00020989,2]
[391181463,1760409062768,-552.75,0.00020989,2]
[391181464,1760409062777,-552.75,0.00020989,2]
[391181465,1760409062787,-552.75,0.00020989,2]
[391181466,1760409062796,-552.75,0.00020989,2]
[391181467,1760409062806,-552.75,0.00020989,2]
[391181468,1760409062815,-552.75,0.00020989,2]
[391181469,1760409062825,-552.75,0.00020989,2]
[391181470,1760409062834,-552.75,0.00020989,2]
[391181471,1760409062843,-552.80463697,0.00020989,2]
[391181472,1760409062852,-500.0,0.00020989,2]
[391181473,1760409062862,-505.27382766,0.00020989,2]
[391181474,1760409062871,-500.0,0.00020989,2]
[391181475,1760409062881,-514.40517705,0.00020989,2]
[391181476,1760409062891,-500.0,0.00020989,2]
[391181477,1760409062901,-500.0,0.00020989,2]
[391181478,1760409062910,-503.57038435,0.00020989,2]
[391181479,1760409062919,-500.0,0.00020989,2]
[391181480,1760409062929,-500.0,0.00020989,2]
[391181481,1760409062938,-500.0,0.00020989,2]
[391181482,1760409062947,-500.0,0.00020989,2]
[391181483,1760409062957,-500.0,0.00020989,2]
[391181484,1760409062967,-500.0,0.00020989,2]
[391181485,1760409062976,-500.0,0.00020989,2]
[391181486,1760409062991,-500.0,0.00020989,2]
[391181487,1760409063013,-500.0,0.00020989,2]
[391181488,1760409063030,-500.0,0.00020989,2]
[391181489,1760409063050,-500.0,0.00020989,2]
[391181490,1760409063070,-500.0,0.00020989,2]
[391181491,1760409063088,-500.0,0.00020989,2]
[391181492,1760409063106,-500.0,0.00020989,2]
[391181493,1760409063123,-500.0,0.00020989,2]
[391181494,1760409063139,-500.0,0.00020989,2]
[391181495,1760409063158,-500.0,0.00020989,2]
[391181496,1760409063178,-500.0,0.00020989,2]
[391181497,1760409063194,-500.0,0.00020989,2]
[391181498,1760409063208,-500.0,0.00020989,2]
[391181499,1760409063227,-500.0,0.00020989,2]
[391181500,1760409063241,-500.0,0.00020989,2]
[391181501,1760409063256,-500.0,0.00020989,2]
[391181502,1760409063271,-219.63658377,0.00020989,2]
[391181503,1760409063285,-501.51443044,0.00020989,2]
[391181504,1760409063300,-500.0,0.00020989,2]
[391181505,1760409063314,-500.0,0.00020989,2]
[391181506,1760409063328,-500.0,0.00020989,2]
[391181507,1760409063343,-504.53335868,0.00020989,2]
[391181508,1760409063357,-100000.0,0.0002099,2]
[391181509,1760409063371,-197.999997,0.00021,2]
[391181510,1760409063387,-500.0,0.00021247,2]
[391181511,1760409063403,-325.57,0.00021252,2]
[391181512,1760409063417,-600.0,0.00021399,20]
[391181513,1760409063432,-300.0,0.000214,20]
[391181514,1760409063446,-300.0,0.000214,20]
[391181515,1760409063460,-300.0,0.000214,20]
[391181516,1760409063474,-300.0,0.000214,20]
[391181517,1760409063488,-300.0,0.000214,20]
[391181518,1760409063503,-300.0,0.000214,20]
[391181519,1760409063516,-300.0,0.000214,20]
[391181520,1760409063530,-300.0,0.000214,20]
[391181521,1760409063544,-300.0,0.000214,20]
[391181522,1760409063559,-300.0,0.000214,20]
[391181523,1760409063572,-300.0,0.000214,20]
[391181524,1760409063586,-300.0,0.000214,20]
[391181525,1760409063605,-300.0,0.000214,20]
[391181526,1760409063620,-300.0,0.000214,20]
[391181527,1760409063636,-300.0,0.000214,20]
[391181528,1760409063649,-500.0,0.00021521,2]
[391181529,1760409063663,-1000.0,0.00021521,2]
[391181530,1760409063678,-501.60511414,0.00021521,2]
[391181531,1760409063692,-1000.0,0.00021521,2]
[391181532,1760409063705,-1000.0,0.00021521,2]
[391181533,1760409063719,-1000.0,0.00021521,2]
[391181534,1760409063733,-507.94926773,0.00021521,2]
[391181535,1760409063748,-1000.0,0.00021521,2]
[391181536,1760409063762,-750.67814024,0.00021521,2]
[391181537,1760409063771,-1001.10601427,0.00021521,2]
[391181538,1760409063780,-1000.0,0.00021521,2]
[391181539,1760409063790,-1003.09828403,0.00021521,2]
[391181540,1760409063799,-1000.82357862,0.00021521,2]
[391181541,1760409063808,-1000.0,0.00021521,2]
[391181542,1760409063943,-1000.0,0.00021521,2]
[391181543,1760409063958,-944.11568481,0.00021521,2]
[391181544,1760409063967,-506.53703909,0.00021521,2]
[391181545,1760409063977,-1000.0,0.00021521,2]
[391181546,1760409063986,-1000.0,0.00021521,2]
[391181547,1760409063995,-1000.0,0.00021521,2]
[391181548,1760409064005,-502.56810543,0.00021521,2]
[391181549,1760409064014,-1000.0,0.00021521,2]
[391181550,1760409064025,-1000.0,0.00021521,2]
[391181551,1760409064034,-1000.0,0.00021521,2]
[391181552,1760409064044,-1000.0,0.00021521,2]
[391181553,1760409064054,-515.19846574,0.00021521,2]
[391181554,1760409064063,-504.71422386,0.00021521,2]
[391181555,1760409064072,-1000.0,0.00021521,2]
[391181556,1760409064082,-325.57181341,0.00021526,2]
[391181557,1760409064091,-220.98504707,0.00021577,2]
[391181558,1760409064101,-9095.1139988,0.00021611,2]
[391181559,1760409064111,-159.93256792,0.00021616,5]
[391181560,1760409064120,-1148.25647821,0.00021677,2]
[391181561,1760409064130,-177.37671564,0.00021706,2]
[391181562,1760409064139,-500.0,0.00021795,2]
[391181563,1760409064149,-8081.34,0.00021817,2]
[391181564,1760409064157,-360.0,0.0002194,2]
[391181565,1760409064166,-19382.2403816,0.00021972,2]
[391181566,1760409064176,-37280.73170821,0.00021984,2]
[391181567,1760409064185,-165.0,0.00022,2]
[391181568,1760409064196,-160.0,0.00022,7]
[391181569,1760409064206,-69084.52,0.00022,7]
[391181570,1760409064215,-100205.62131227,0.00022,5]
[391181571,1760409064224,-268.38341091,0.00022068,2]
[391181572,1760409064234,-1500.0,0.00022068,2]
[391181573,1760409064243,-1500.0,0.00022068,2]
[391181574,1760409064253,-1500.0,0.00022068,2]
[391181575,1760409064262,-500.0,0.00022068,2]
[391181576,1760409064271,-630.46605884,0.00022068,2]
[391181577,1760409064281,-1500.0,0.00022068,2]
[391181578,1760409064291,-1500.0,0.00022068,2]
[391181579,1760409064300,-1500.0,0.00022068,2]
[391181580,1760409064310,-1500.0,0.00022068,2]
[391181581,1760409064319,-1500.0,0.00022068,2]
[391181582,1760409064329,-1500.0,0.00022068,2]
[391181583,1760409064338,-620.17371076,0.00022068,2]
[391181584,1760409064348,-1500.0,0.00022068,2]
[391181585,1760409064357,-1500.0,0.00022068,2]
[391181586,1760409064367,-502.56346801,0.00022068,2]
[391181587,1760409064377,-1500.0,0.00022068,2]
[391181588,1760409064386,-249.80918365,0.00022177,2]
[391181589,1760409064397,-458.64960447,0.00022192,2]
[391181590,1760409064407,-1236.76,0.00022338,3]
[391181591,1760409064417,-618.38,0.00022338,3]
[391181592,1760409064426,-500.0,0.00022342,2]
[391181593,1760409064436,-1148.25647821,0.00022475,2]
[391181594,1760409064446,-500.0,0.00022533,2]
[391181595,1760409064455,-500.0,0.00022533,2]
[391181596,1760409064466,-613.99309105,0.00022533,2]
[391181597,1760409064476,-150.0,0.00022533,2]
[391181598,1760409064485,-500.0,0.00022533,2]
[391181599,1760409064495,-500.0,0.00022533,2]
[391181600,1760409064505,-500.0,0.00022575,2]
[391181601,1760409064514,-500.0,0.00022575,2]
[391181602,1760409064524,-501.42481749,0.00022575,2]
[391181603,1760409064534,-500.0,0.00022575,2]
[391181604,1760409064544,-500.0,0.00022575,2]
[391181605,1760409064554,-500.0,0.00022575,2]
[391181606,1760409064563,-500.0,0.00022575,2]
[391181607,1760409064573,-505.48122756,0.00022575,2]
[391181608,1760409064582,-500.85033142,0.00022575,2]
[391181609,1760409064594,-500.0,0.00022575,2]
[391181610,1760409064604,-500.0,0.00022575,2]
[391181611,1760409064613,-500.0,0.00022575,2]
[391181612,1760409064623,-501.16757058,0.00022575,2]
[391181613,1760409064633,-257.37178029,0.00022575,2]
[391181614,1760409064642,-200.5481334,0.00022575,2]
[391181615,1760409064651,-500.40494028,0.00022575,2]
[391181616,1760409064661,-501.33071766,0.00022575,2]
[391181617,1760409064672,-500.0,0.00022575,2]
[391181618,1760409064682,-283.06587868,0.00022575,2]
[391181619,1760409064692,-500.0,0.00022575,2]
[391181620,1760409064702,-500.0,0.00022575,2]
[391181621,1760409064712,-500.0,0.00022575,2]
[391181622,1760409064722,-500.0,0.00022575,2]
[391181623,1760409064731,-252.09753764,0.00022575,2]
[391181624,1760409064741,-503.51263479,0.00022575,2]
[391181625,1760409064751,-501.13410543,0.00022575,2]
[391181626,1760409064760,-505.55051559,0.00022575,2]
[391181627,1760409064770,-500.0,0.00022575,2]
[391181628,1760409064780,-500.0,0.00022575,2]
[391181629,1760409064790,-500.0,0.00022575,2]
[391181630,1760409064800,-2007.16749992,0.00022616,2]
[391181631,1760409064810,-2000.0,0.00022616,2]
[391181632,1760409064819,-159.66477351,0.00022616,2]
[391181633,1760409064830,-500.0,0.00022616,2]
[391181634,1760409064840,-2000.0,0.00022616,2]
[391181635,1760409064850,-2000.0,0.00022616,2]
[391181636,1760409064860,-2000.0,0.00022616,2]
[391181637,1760409064869,-2000.0,0.00022616,2]
[391181638,1760409064879,-2000.0,0.00022616,2]
[391181639,1760409064889,-2000.0,0.00022616,2]
[391181640,1760409064899,-2000.0,0.00022616,2]
[391181641,1760409064909,-2000.0,0.00022616,2]
[391181642,1760409064918,-2000.0,0.00022616,2]
[391181643,1760409064928,-160.0,0.00022667,2]
[391181644,1760409064938,-300.0,0.0002267,2]
[391181645,1760409064948,-151.0,0.000227,5]
[391181646,1760409064959,-164.0,0.00022712,8]
[391181647,1760409064969,-10775.12,0.00022766,2]
[391181648,1760409064979,-278.63332022,0.00022777,2]
[391181649,1760409064989,-420.0,0.00022808,2]
[391181650,1760409064999,-500.0,0.0002289,2]
[391181651,1760409065009,-1680.0,0.00022921,2]
[391181652,1760409065020,-160.0,0.00023,2]
[391181653,1760409065031,-44982.21877787,0.00023,2]
[391181654,1760409065041,-136961.96271594,0.00023,3]
[391181655,1760409065052,-1000.0,0.00023081,2]
[391181656,1760409065065,-1000.0,0.00023081,2]
[391181657,1760409065075,-1000.0,0.00023081,2]
[391181658,1760409065085,-1000.0,0.00023081,2]
[391181659,1760409065095,-1000.0,0.00023123,2]
[391181660,1760409065105,-1003.51055538,0.00023123,2]
[391181661,1760409065115,-1000.0,0.00023123,2]
[391181662,1760409065125,-1008.02299742,0.00023123,2]
[391181663,1760409065135,-1000.0,0.00023123,2]
[391181664,1760409065145,-504.53972557,0.00023123,2]
[391181665,1760409065154,-1000.0,0.00023123,2]
[391181666,1760409065164,-596.07510529,0.00023123,2]
[391181667,1760409065174,-1000.0,0.00023123,2]
[391181668,1760409065184,-1000.0,0.00023123,2]
[391181669,1760409065194,-1008.83361366,0.00023123,2]
[391181670,1760409065204,-507.42612004,0.00023123,2]
[391181671,1760409065214,-1007.10817055,0.00023123,2]
[391181672,1760409065223,-1000.0,0.00023123,2]
[391181673,1760409065233,-1000.0,0.00023123,2]
[391181674,1760409065242,-269.71089418,0.00023123,2]
[391181675,1760409065252,-1000.0,0.00023123,2]
[391181676,1760409065261,-500.0,0.00023164,2]
[391181677,1760409065271,-2500.0,0.00023164,2]
[391181678,1760409065281,-2500.0,0.00023164,2]
[391181679,1760409065291,-1508.96171624,0.00023164,2]
[391181680,1760409065301,-2500.0,0.00023164,2]
[391181681,1760409065310,-2500.0,0.00023164,2]
[391181682,1760409065320,-2500.0,0.00023164,2]
[391181683,1760409065329,-2500.0,0.00023164,2]
[391181684,1760409065340,-2500.0,0.00023164,2]
[391181685,1760409065349,-2500.0,0.00023164,2]
[391181686,1760409065358,-736.63850039,0.00023164,2]
[391181687,1760409065367,-260.0,0.00023215,2]
[391181688,1760409065379,-95000.0,0.00023288,30]
[391181689,1760409065388,-160.0,0.00023288,30]
[391181690,1760409065398,-307.45745679,0.00023377,2]
[391181691,1760409065407,-500.0,0.00023438,2]
[391181692,1760409065417,-22826.99,0.000235,3]
[391181693,1760409065426,-151.23820726,0.00023505,2]
[391181694,1760409065437,-500.0,0.00023505,2]
[391181695,1760409065446,-500.0,0.00023505,2]
[391181696,1760409065456,-500.0,0.00023505,2]
[391181697,1760409065466,-720.0,0.00023538,20]
[391181698,1760409065476,-613.71370183,0.0002356,2]
[391181699,1760409065486,-500.0,0.0002356,2]
[391181700,1760409065495,-500.0,0.0002356,2]
[391181701,1760409065505,-458.64960447,0.00023584,2]
[391181702,1760409065514,-500.0,0.00023615,2]
[391181703,1760409065524,-500.0,0.00023615,2]
[391181704,1760409065533,-1500.0,0.00023629,2]
[391181705,1760409065543,-501.79111459,0.00023629,2]
[391181706,1760409065552,-1500.0,0.00023629,2]
[391181707,1760409065561,-822.36522226,0.00023629,2]
[391181708,1760409065571,-500.0,0.00023669,2]
[391181709,1760409065580,-500.0,0.00023669,2]
[391181710,1760409065591,-1500.0,0.00023671,2]
[391181711,1760409065604,-440.50785904,0.00023671,2]
[391181712,1760409065613,-1500.0,0.00023671,2]
[391181713,1760409065625,-500.23894583,0.00023671,2]
[391181714,1760409065635,-1007.76677631,0.00023671,2]
[391181715,1760409065644,-501.46367986,0.00023671,2]
[391181716,1760409065653,-1500.0,0.00023671,2]
[391181717,1760409065662,-1500.0,0.00023671,2]
[391181718,1760409065672,-3000.0,0.00023712,2]
[391181719,1760409065682,-738.50649468,0.00023712,2]
[391181720,1760409065691,-1870.96013327,0.00023712,2]
[391181721,1760409065701,-3019.19067184,0.00023712,2]
[391181722,1760409065712,-3000.0,0.00023712,2]
[391181723,1760409065721,-3000.0,0.00023712,2]
[391181724,1760409065731,-3000.0,0.00023712,2]
[391181725,1760409065740,-1306.36688917,0.00023712,2]
[391181726,1760409065749,-500.0,0.00023712,2]
[391181727,1760409065759,-13468.9,0.00023715,2]
[391181728,1760409065768,-308.12396538,0.00023724,2]
[391181729,1760409065779,-320.83262115,0.00023724,2]
[391181730,1760409065788,-360.0,0.00023763,2]
[391181731,1760409065797,-190.98382138,0.00023799,2]
[391181732,1760409065807,-151.0,0.00023888,2]
[391181733,1760409065817,-151.0,0.00023888,2]
[391181734,1760409065827,-151.0,0.00023888,2]
[391181735,1760409065836,-151.0,0.00023888,2]
[391181736,1760409065846,-151.0,0.00023888,2]
[391181737,1760409065855,-157.21960119,0.00023888,2]
[391181738,1760409065864,-500.0,0.00023888,2]
[391181739,1760409065875,-207.18338576,0.00023888,2]
[391181740,1760409065885,-151.0,0.00023888,2]
[391181741,1760409065895,-151.0,0.00023888,2]
[391181742,1760409065904,-151.0,0.00023888,2]
[391181743,1760409065913,-151.34838489,0.00023888,2]
[391181744,1760409065922,-151.0,0.00023888,2]
[391181745,1760409065931,-198.32727524,0.00023888,2]
[391181746,1760409065941,-151.0,0.00023888,2]
[391181747,1760409066026,-500.0,0.00023888,2]
[391181748,1760409066050,-151.0,0.00023888,2]
[391181749,1760409066059,-151.83943699,0.00023888,2]
[391181750,1760409066068,-151.0,0.00023888,2]
[391181751,1760409066078,-151.0,0.00023888,2]
[391181752,1760409066087,-199.21985751,0.00023888,2]
[391181753,1760409066096,-216.21577506,0.00023888,2]
[391181754,1760409066105,-151.0,0.00023888,2]
[391181755,1760409066114,-151.0,0.00023888,2]
[391181756,1760409066123,-500.0,0.00023888,2]
[391181757,1760409066132,-151.67901807,0.00023888,2]
[391181758,1760409066142,-151.95213376,0.00023943,2]
[391181759,1760409066152,-151.48161483,0.00023943,2]
[391181760,1760409066162,-151.98678492,0.00023943,2]
[391181761,1760409066171,-151.0,0.00023943,2]
[391181762,1760409066181,-152.31295025,0.00023943,2]
[391181763,1760409066191,-500.0,0.00023943,2]